bitfinex/quotes_SOLUSD_20251226
["timestamp","ask_amount","ask_price","bid_price","bid_amount"]
[1766715669077,10.39188841,123.48,123.4,0.72]
[1766715669078,10.39188841,123.44,123.4,0.72]
[1766715669277,0.51,123.48,123.4,8.82361614]
[1766715669278,10.39188841,123.43,123.4,8.82361614]
[1766715669583,0.51,123.48,123.41,10.39188841]
[1766715669767,0.51,123.48,123.41,0.72]
[1766715669963,10.39188841,123.45,123.41,0.72]
[1766715670163,0.51,123.48,123.4,8.10361614]
[1766715670389,10.39188841,123.45,123.4,8.10361614]
[1766715670591,0.51,123.48,123.4,8.10361614]
[1766715670885,0.51,123.48,123.39,31.37172493]
[1766715670886,0.51,123.53,123.45,10.43767296]
[1766715671057,0.51,123.51,123.43,8.10166941]
[1766715671260,10.39188841,123.49,123.44,0.72]
[1766715671459,10.39188841,123.48,123.44,0.72]
[1766715671660,8.09454427,123.54,123.45,10.39188841]
[1766715671884,0.51,123.55,123.47,0.72]
[1766715672087,0.51,123.55,123.46,10.43767296]
[1766715672088,10.39188841,123.54,123.48,11.11188841]
[1766715672264,10.39188841,123.52,123.48,0.72]
[1766715672465,10.39188841,123.54,123.48,11.11188841]
[1766715672658,10.39188841,123.53,123.48,11.11188841]
[1766715672886,10.39188841,123.54,123.48,19.20982798]
[1766715673075,10.39188841,123.54,123.48,8.81793957]
[1766715673276,10.39188841,123.54,123.48,19.20982798]
[1766715673866,10.39188841,123.52,123.46,10.39188841]
[1766715674169,8.60339747,123.56,123.48,8.77838379]
[1766715674373,14.76,123.59,123.49,9.09609269]
[1766715674569,0.1,123.67,123.51,9.77609269]
[1766715674570,9.09609269,123.57,123.51,9.77609269]
[1766715674886,9.09609269,123.57,123.52,8.09585492]
[1766715675096,9.09609269,123.55,123.51,0.68]
[1766715675291,9.09609269,123.55,123.51,8.77639422]
[1766715675587,9.09609269,123.55,123.5,0.68]
[1766715675782,9.09609269,123.56,123.5,9.77609269]
[1766715675988,0.51,123.58,123.51,17.87248902]
[1766715676179,9.09609269,123.56,123.51,17.87248902]
[1766715676499,9.09609269,123.55,123.5,8.09714297]
[1766715676793,9.09609269,123.53,123.5,8.09709744]
[1766715677092,9.09609269,123.53,123.49,8.77773305]
[1766715677268,9.09609269,123.54,123.49,0.68]
[1766715677471,9.09609269,123.54,123.49,17.87387006]
[1766715677670,0.51,123.6,123.51,9.09609269]
[1766715677872,8.60061488,123.6,123.52,0.68]
[1766715678073,9.09609269,123.57,123.52,0.68]
[1766715678476,9.09609269,123.55,123.52,0.68]
[1766715678694,0.51,123.59,123.5,9.77609269]
[1766715678890,0.51,123.59,123.52,8.09585492]
[1766715679116,0.51,123.65,123.55,9.09609269]
[1766715679287,0.51,123.63,123.54,0.68]
[1766715679482,9.09609269,123.61,123.55,9.09609269]
[1766715679691,0.51,123.63,123.55,9.77609269]
[1766715679875,9.09609269,123.6,123.55,9.77609269]
[1766715680084,0.51,123.63,123.55,9.77609269]
[1766715680281,9.09609269,123.6,123.55,0.68]
[1766715680480,9.09609269,123.59,123.52,38.77316518]
[1766715680694,14.76,123.64,123.53,9.09609269]
[1766715680883,0.51,123.63,123.57,8.0925791]
[1766715681088,9.09609269,123.6,123.56,8.77308933]
[1766715681299,0.51,123.62,123.56,8.0931599]
[1766715681599,0.51,123.62,123.56,17.18925259]
[1766715681600,9.60609269,123.62,123.56,17.18925259]
[1766715681798,9.09609269,123.62,123.57,9.09609269]
[1766715682013,0.51,123.64,123.56,8.7731599]
[1766715682014,9.09609269,123.61,123.56,17.86925259]
[1766715682170,0.1,123.67,123.59,9.77609269]
[1766715682171,8.69616879,123.67,123.59,9.77609269]
[1766715682378,0.1,123.67,123.62,9.77609269]
[1766715682597,9.19609269,123.67,123.62,0.68]
[1766715682808,9.19609269,123.67,123.59,10.43767296]
[1766715682809,9.09609269,123.65,123.59,20.21376565]
[1766715683102,9.09609269,123.63,123.59,0.68]
[1766715683394,9.09609269,123.62,123.57,11.11767296]
[1766715683599,9.09609269,123.62,123.54,15.46]
[1766715683600,9.09609269,123.59,123.54,15.46]
[1766715683800,9.09609269,123.62,123.58,0.68]
[1766715683975,5.82365706,123.6,123.56,8.09276082]
[1766715684178,5.82365706,123.61,123.57,8.09234331]
[1766715684378,5.82365706,123.62,123.57,8.09234331]
[1766715684677,5.82365706,123.64,123.6,0.68]
[1766715684871,5.82365706,123.65,123.6,0.68]
[1766715685105,0.1,123.67,123.61,13.91361741]
[1766715685406,5.92365706,123.67,123.62,0.68]
[1766715685612,0.1,123.67,123.62,6.50365706]
[1766715685815,0.1,123.67,123.63,0.68]
[1766715685989,3.6257922,123.69,123.65,5.82365706]
[1766715686189,0.51,123.73,123.65,0.68]
[1766715686420,3.74329601,123.78,123.7,5.82365706]
[1766715686726,3.74329601,123.78,123.72,6.50365706]
[1766715686891,3.74329601,123.78,123.72,0.68]
[1766715687085,3.74329601,123.78,123.73,14.58577134]
[1766715687286,3.74329601,123.78,123.75,0.68]
[1766715687491,3.74329601,123.78,123.72,0.68]
[1766715687492,5.82365706,123.76,123.72,0.68]
[1766715687707,3.74329601,123.78,123.72,0.68]
[1766715687909,5.82365706,123.74,123.7,0.68]
[1766715688113,5.82365706,123.71,123.66,0.68]
[1766715688319,5.82365706,123.67,123.62,0.68]
[1766715688485,0.51,123.71,123.62,0.68]
[1766715688486,5.82365706,123.66,123.63,0.68]
[1766715688686,5.82365706,123.66,123.6,22.87013627]
[1766715688915,6.33365706,123.69,123.63,5.82365706]
[1766715689150,5.82365706,123.65,123.59,8.09120695]
[1766715689290,28.80921568,123.68,123.59,8.77069908]
[1766715689488,5.82365706,123.6,123.45,15.0]
[1766715689686,5.82365706,123.59,123.54,5.82365706]
[1766715689888,14.74,123.67,123.46,27.32320931]
[1766715689889,9.08873616,123.57,123.5,0.68]
[1766715690089,9.08873616,123.56,123.52,9.08873616]
[1766715690387,10.43767296,123.63,123.52,9.76873616]
[1766715690388,0.51,123.59,123.52,9.76873616]
[1766715690591,0.51,123.67,123.5,0.68]
[1766715690790,9.08873616,123.55,123.49,14.78]
[1766715690989,21.1281,123.67,123.49,14.78]
[1766715690990,0.51,123.67,123.5,0.68]
[1766715691215,0.51,123.62,123.55,9.08873616]
[1766715691415,9.08873616,123.57,123.53,9.08873616]
[1766715691722,0.51,123.62,123.53,9.76873616]
[1766715691898,9.08873616,123.59,123.54,9.08873616]
[1766715692097,10.43767296,123.65,123.57,9.08873616]
[1766715692308,0.51,123.64,123.58,9.08873616]
[1766715692496,0.51,123.64,123.55,0.68]
[1766715692697,9.08873616,123.62,123.56,9.08873616]
[1766715693021,9.08873616,123.62,123.55,0.68]
[1766715693022,8.0866893,123.66,123.58,0.68]
[1766715693224,0.51,123.65,123.59,9.08873616]
[1766715693517,9.59873616,123.65,123.58,0.68]
[1766715693714,9.08873616,123.64,123.59,9.08873616]
[1766715693913,14.74,123.69,123.57,9.08873616]
[1766715693914,9.08873616,123.62,123.57,9.08873616]
[1766715694090,9.08873616,123.62,123.56,9.08873616]
[1766715694292,10.43767296,123.66,123.57,9.08873616]
[1766715694489,9.59873616,123.63,123.58,9.08873616]
[1766715694692,0.51,123.61,123.54,10.43767296]
[1766715694893,9.08873616,123.6,123.55,9.08873616]
[1766715695117,17.17978918,123.6,123.55,9.08873616]
[1766715695433,0.51,123.6,123.55,9.08873616]
[1766715695725,9.59873616,123.6,123.55,9.08873616]
[1766715695923,9.08873616,123.61,123.56,9.08873616]
[1766715696434,9.08873616,123.58,123.51,0.68]
[1766715696718,9.08873616,123.57,123.52,9.08873616]
[1766715696907,0.51,123.59,123.52,9.08873616]
[1766715697113,17.18066342,123.58,123.51,8.77640584]
[1766715697302,17.17998474,123.6,123.54,9.08873616]
[1766715697623,9.08873616,123.56,123.5,0.68]
[1766715697821,9.08873616,123.55,123.5,9.08873616]
[1766715698000,9.08873616,123.53,123.46,8.77974792]
[1766715698330,0.51,123.59,123.52,9.08873616]
[1766715698537,8.09124858,123.6,123.54,9.08873616]
[1766715698694,8.60124858,123.6,123.53,0.68]
[1766715699014,9.08873616,123.58,123.51,8.7763824]
[1766715699194,9.08873616,123.58,123.53,9.08873616]
[1766715699195,17.18085262,123.58,123.53,9.08873616]
[1766715699389,9.08873616,123.57,123.52,9.08873616]
[1766715699593,9.59873616,123.57,123.51,9.76873616]
[1766715700010,0.51,123.6,123.51,8.77639006]
[1766715700219,9.08873616,123.57,123.52,9.08873616]
[1766715700420,8.09029031,123.61,123.55,9.08873616]
[1766715700618,9.08873616,123.61,123.56,9.08873616]
[1766715701022,9.08873616,123.61,123.5,14.78]
[1766715701023,9.08873616,123.59,123.52,8.7756993]
[1766715701213,9.08873616,123.59,123.52,8.0956993]
[1766715701416,9.08873616,123.59,123.53,0.68]
[1766715701606,8.08982858,123.62,123.56,9.76873616]
[1766715701914,9.08873616,123.6,123.54,0.7]
[1766715702118,0.51,123.68,123.58,9.08873616]
[1766715702319,0.51,123.64,123.59,9.08873616]
[1766715702515,9.08873616,123.63,123.58,9.08873616]
[1766715702716,9.59873616,123.62,123.54,29.03067172]
[1766715702915,9.59873616,123.62,123.55,0.7]
[1766715703220,9.08873616,123.61,123.56,9.08873616]
[1766715703414,9.59873616,123.6,123.53,0.7]
[1766715703615,52.75277872,123.62,123.52,9.08873616]
[1766715703616,9.08873616,123.58,123.52,9.08873616]
[1766715703807,0.51,123.55,123.45,14.78]
[1766715704001,9.59873616,123.55,123.5,9.08873616]
[1766715704325,39.2,123.6,123.4,12.54320931]
[1766715704326,9.08873616,123.51,123.4,12.54320931]
[1766715704627,9.08873616,123.51,123.35,15.2]
[1766715704628,0.51,123.5,123.42,9.80873616]
[1766715704833,9.08873616,123.49,123.42,0.72]
[1766715705001,0.51,123.59,123.47,9.08873616]
[1766715705199,0.51,123.56,123.48,9.08873616]
[1766715705398,0.51,123.56,123.46,0.72]
[1766715705626,9.08873616,123.52,123.47,9.08873616]
[1766715705939,9.08873616,123.5,123.45,9.80873616]
[1766715706105,0.51,123.51,123.45,9.80873616]
[1766715706305,0.51,123.55,123.48,9.08873616]
[1766715706502,9.08873616,123.52,123.46,0.72]
[1766715706798,9.08873616,123.53,123.48,9.08873616]
[1766715707009,9.59873616,123.52,123.47,9.08873616]
[1766715707214,9.08873616,123.52,123.46,0.72]
[1766715707408,9.08873616,123.52,123.47,9.08873616]
[1766715707722,0.51,123.52,123.47,9.08873616]
[1766715707931,9.08873616,123.51,123.44,8.82094963]
[1766715708113,0.51,123.52,123.44,8.82094963]
[1766715708314,9.08873616,123.5,123.44,0.72]
[1766715708610,0.51,123.52,123.45,9.08873616]
[1766715708798,9.08873616,123.5,123.45,9.08873616]
[1766715709003,9.08873616,123.47,123.41,8.82246178]
[1766715709313,14.76,123.52,123.43,9.08873616]
[1766715709517,9.08873616,123.5,123.45,9.08873616]
[1766715709724,0.51,123.51,123.43,0.72]
[1766715709923,9.08873616,123.47,123.42,9.08873616]
[1766715710126,0.51,123.51,123.36,0.72]
[1766715710423,0.51,123.51,123.39,9.08873616]
[1766715710424,0.51,123.46,123.39,9.08873616]
[1766715710598,0.51,123.46,123.35,35.24737833]
[1766715710599,0.51,123.43,123.35,0.92]
[1766715710799,9.08873616,123.4,123.36,9.08873616]
[1766715711011,9.08873616,123.39,123.35,0.92]
[1766715711199,8.10379298,123.4,123.35,0.2]
[1766715711401,9.08873616,123.38,123.35,0.2]
[1766715711611,9.08873616,123.39,123.35,0.2]
[1766715712029,0.51,123.4,123.35,0.2]
[1766715712218,8.10320222,123.41,123.35,0.2]
[1766715712425,35.52297874,123.44,123.36,0.72]
[1766715712730,0.51,123.45,123.39,5.84530603]
[1766715713229,5.84530603,123.45,123.41,5.84530603]
[1766715713428,5.84530603,123.46,123.41,5.84530603]
[1766715713628,5.84530603,123.45,123.38,8.10498645]
[1766715713830,5.84530603,123.45,123.4,5.84530603]
[1766715714135,28.34749518,123.47,123.39,9.10691508]
[1766715714335,9.10691508,123.44,123.39,9.10691508]
[1766715714528,0.51,123.44,123.35,9.02636959]
[1766715714710,9.10691508,123.41,123.36,0.72]
[1766715714910,9.10691508,123.42,123.36,0.72]
[1766715715106,9.10691508,123.4,123.36,8.82622217]
[1766715715316,0.51,123.46,123.35,0.2]
[1766715715527,0.51,123.46,123.34,10.43767296]
[1766715715528,0.51,123.46,123.32,0.72]
[1766715715529,10.84767296,123.42,123.32,0.72]
[1766715715837,0.41,123.44,123.36,0.72]
[1766715716035,15.17,123.44,123.36,0.72]
[1766715716213,0.41,123.43,123.32,20.99130923]
[1766715716542,9.10691508,123.4,123.33,8.82818178]
[1766715716726,0.41,123.4,123.31,0.92]
[1766715717036,9.10691508,123.35,123.31,0.2]
[1766715717234,15.17,123.36,123.31,0.2]
[1766715717414,14.76,123.36,123.32,9.82691508]
[1766715717618,0.41,123.4,123.32,0.72]
[1766715717823,9.10691508,123.38,123.32,0.72]
[1766715718022,8.51396998,123.4,123.33,9.10691508]
[1766715718225,0.41,123.39,123.33,9.10691508]
[1766715718544,8.10396998,123.4,123.32,0.72]
[1766715718831,9.10691508,123.4,123.35,9.10691508]
[1766715719041,9.10691508,123.4,123.36,9.10691508]
[1766715719207,9.10691508,123.38,123.32,0.72]
[1766715719412,8.10462546,123.39,123.33,9.10691508]
[1766715719624,8.10462546,123.39,123.32,0.72]
[1766715719823,9.10691508,123.38,123.34,9.10691508]
[1766715720035,9.10691508,123.38,123.33,0.72]
[1766715720036,0.41,123.39,123.31,0.92]
[1766715720211,0.41,123.39,123.33,9.10691508]
[1766715720417,9.10691508,123.34,123.31,0.2]
[1766715720636,9.10691508,123.32,123.27,0.2]
[1766715720833,14.97,123.36,123.27,0.82]
[1766715721062,14.76,123.35,123.29,9.10691508]
[1766715721227,0.21,123.39,123.31,9.10691508]
[1766715721415,43.33764466,123.38,123.3,0.72]
[1766715721614,0.21,123.37,123.28,0.72]
[1766715721819,8.10504133,123.38,123.34,9.10691508]
[1766715722029,8.10504133,123.38,123.32,9.10691508]
[1766715722030,8.31504133,123.38,123.32,9.10691508]
[1766715722345,9.10691508,123.35,123.28,11.15767296]
[1766715722515,9.10691508,123.35,123.28,0.72]
[1766715722516,9.10691508,123.33,123.28,0.72]
[1766715722718,28.36764466,123.38,123.3,9.10691508]
[1766715723016,0.21,123.41,123.32,9.10691508]
[1766715723352,9.10691508,123.35,123.3,9.82691508]
[1766715723511,8.3150988,123.38,123.31,9.10691508]
[1766715723711,10.43767296,123.41,123.3,8.11014595]
[1766715723712,9.10691508,123.39,123.34,9.10691508]
[1766715724040,9.10691508,123.35,123.33,0.72]
[1766715724225,25.42767296,123.41,123.33,0.72]
[1766715724543,9.10691508,123.36,123.33,0.72]
[1766715724722,10.43767296,123.4,123.33,0.72]
[1766715724941,10.43767296,123.39,123.33,0.72]
[1766715725125,14.78,123.39,123.33,0.72]
[1766715725319,8.31361169,123.41,123.33,8.82802434]
[1766715725519,9.10691508,123.39,123.33,0.72]
[1766715725715,9.10691508,123.39,123.33,8.82823833]
[1766715725921,9.10691508,123.37,123.33,0.72]
[1766715726242,9.10691508,123.37,123.32,9.10691508]
[1766715726550,9.10691508,123.37,123.29,20.27706723]
[1766715726551,22.88255348,123.42,123.33,8.1082015]
[1766715726763,23.88691508,123.42,123.33,38.81665969]
[1766715726925,9.10691508,123.41,123.35,9.10691508]
[1766715727325,9.10691508,123.4,123.34,8.1071223]
[1766715727547,9.10691508,123.37,123.31,8.10910844]
[1766715727768,9.10691508,123.37,123.31,17.21602352]
[1766715728052,9.10691508,123.36,123.31,8.10913368]
[1766715728248,9.10691508,123.39,123.29,10.43767296]
[1766715728547,9.10691508,123.39,123.34,8.1075199]
[1766715728844,9.10691508,123.39,123.27,0.1]
[1766715728845,9.10691508,123.37,123.32,8.10879449]
[1766715729219,14.78,123.4,123.29,10.43767296]
[1766715729432,8.10438447,123.39,123.3,28.38605028]
[1766715729737,8.10438447,123.39,123.3,8.11030008]
[1766715729917,8.10438447,123.39,123.31,9.10691508]
[1766715730118,22.8838555,123.4,123.31,9.10691508]
[1766715730332,9.10691508,123.4,123.3,28.38605028]
[1766715730827,9.10691508,123.4,123.34,9.10691508]
[1766715731040,9.10691508,123.4,123.3,28.38605028]
[1766715731239,9.10691508,123.4,123.33,9.10691508]
[1766715731546,9.10691508,123.39,123.33,17.2146575]
[1766715731741,9.10691508,123.39,123.34,10.43767296]
[1766715731950,53.57639256,123.42,123.31,9.10691508]
[1766715732247,9.10691508,123.39,123.33,17.21520281]
[1766715732443,9.10691508,123.37,123.31,20.27300896]
[1766715732639,9.10691508,123.38,123.32,9.10691508]
[1766715732830,9.10691508,123.38,123.31,20.27300896]
[1766715733033,14.78,123.41,123.31,20.27300896]
[1766715733034,14.78,123.41,123.34,9.10691508]
[1766715733236,9.10691508,123.39,123.34,9.10691508]
[1766715733539,14.78,123.41,123.35,9.10691508]
[1766715733540,9.10691508,123.4,123.35,9.10691508]
[1766715733740,9.10691508,123.41,123.34,8.10740291]
[1766715733944,43.13615328,123.43,123.34,17.60423496]
[1766715734137,9.49683205,123.41,123.35,9.49683205]
[1766715734341,20.24809994,123.47,123.39,9.49683205]
[1766715734575,28.34304385,123.49,123.41,9.49683205]
[1766715734848,9.49683205,123.42,123.34,17.60423496]
[1766715735056,25.21767296,123.45,123.35,9.49683205]
[1766715735256,9.49683205,123.41,123.34,28.37657754]
[1766715735455,9.49683205,123.4,123.34,8.10740291]
[1766715735629,9.49683205,123.37,123.31,19.93450501]
[1766715735959,28.35385611,123.44,123.34,9.49683205]
[1766715736257,28.35385611,123.44,123.35,9.49683205]
[1766715736432,9.49683205,123.41,123.35,9.49683205]
[1766715736754,9.49683205,123.4,123.32,38.81910135]
[1766715736961,8.0997894,123.46,123.37,9.49683205]
[1766715737254,8.0997894,123.46,123.4,9.49683205]
[1766715737255,9.49683205,123.46,123.4,9.49683205]
[1766715737633,9.49683205,123.47,123.41,17.5998259]
[1766715737833,20.24374307,123.5,123.42,9.49683205]
[1766715738140,8.09716599,123.5,123.42,9.49683205]
[1766715738341,9.49683205,123.47,123.41,17.5998259]
[1766715738550,28.34008096,123.5,123.42,9.49683205]
[1766715738735,9.49683205,123.48,123.42,9.49683205]
[1766715739849,9.49683205,123.49,123.43,17.59859013]
[1766715740051,9.49683205,123.48,123.43,9.49683205]
[1766715740257,8.09716599,123.5,123.43,9.49683205]
[1766715740566,9.49683205,123.5,123.45,9.49683205]
[1766715740853,14.78,123.51,123.42,28.35832316]
[1766715741040,32.37351397,123.51,123.45,9.49683205]
[1766715741244,32.37351397,123.51,123.42,28.35832316]
[1766715741245,9.49683205,123.49,123.44,9.49683205]
[1766715741437,22.87668192,123.51,123.44,9.49683205]
[1766715741438,14.78,123.51,123.44,9.49683205]
[1766715741749,14.78,123.51,123.45,17.59702132]
[1766715741950,24.27683205,123.51,123.46,9.49683205]
[1766715742329,14.78,123.51,123.47,9.49683205]
[1766715742530,9.49683205,123.53,123.47,9.49683205]
[1766715743041,9.49683205,123.51,123.45,8.10018927]
[1766715743357,9.49683205,123.46,123.39,20.26063456]
[1766715743556,14.78,123.5,123.41,17.59988739]
[1766715743739,9.49683205,123.46,123.41,8.10305534]
[1766715743941,9.49683205,123.48,123.42,9.49683205]
[1766715744137,9.49683205,123.5,123.44,9.49683205]
[1766715744359,9.49683205,123.51,123.45,9.49683205]
[1766715744667,8.30519954,123.53,123.41,28.36073299]
[1766715744668,9.49683205,123.5,123.41,28.36073299]
[1766715744841,9.49683205,123.5,123.44,9.49683205]
[1766715745043,0.21,123.52,123.41,28.36073299]
[1766715745044,0.21,123.52,123.42,10.43767296]
[1766715745240,9.49683205,123.48,123.42,10.43767296]
[1766715745440,9.49683205,123.48,123.43,9.49683205]
[1766715745639,9.49683205,123.49,123.43,9.49683205]
[1766715745960,9.49683205,123.49,123.42,10.43767296]
[1766715745961,9.49683205,123.5,123.45,9.49683205]
[1766715746254,9.49683205,123.5,123.44,8.10056969]
[1766715746458,9.49683205,123.5,123.45,0.67]
[1766715746757,0.21,123.52,123.45,10.16683205]
[1766715746962,8.09463979,123.54,123.48,0.67]
[1766715747162,9.49683205,123.54,123.48,10.16683205]
[1766715747533,9.49683205,123.52,123.48,0.67]
[1766715747949,23.06406023,123.55,123.48,0.67]
[1766715748238,9.49683205,123.52,123.48,0.67]
[1766715748444,9.49683205,123.53,123.48,0.67]
[1766715749196,0.21,123.53,123.43,0.67]
[1766715749340,9.49683205,123.49,123.44,0.67]
[1766715749862,9.49683205,123.48,123.44,0.67]
[1766715750060,9.49683205,123.46,123.42,0.67]
[1766715750266,9.49683205,123.45,123.42,0.67]
[1766715750468,9.49683205,123.44,123.42,0.67]
[1766715750760,9.49683205,123.45,123.42,0.67]
[1766715751129,8.09926753,123.47,123.42,0.67]
[1766715751358,8.30926753,123.47,123.4,8.77327615]
[1766715751560,9.49683205,123.44,123.4,0.67]
[1766715751741,9.49683205,123.43,123.37,0.67]
[1766715751943,9.49683205,123.45,123.4,0.67]
[1766715752166,9.49683205,123.45,123.4,18.27014066]
[1766715752374,9.49683205,123.46,123.42,0.67]
[1766715752534,24.25683205,123.47,123.42,8.10230729]
[1766715752737,24.25683205,123.47,123.43,0.67]
[1766715752738,9.49683205,123.47,123.43,0.67]
[1766715752975,43.10167261,123.5,123.43,0.67]
[1766715753174,9.49683205,123.47,123.43,0.67]
[1766715753374,43.31167261,123.5,123.43,0.67]
[1766715753559,9.49683205,123.49,123.43,10.16683205]
[1766715753765,9.49683205,123.48,123.43,0.67]
[1766715753959,9.49683205,123.47,123.43,0.67]
[1766715754161,8.30778149,123.5,123.43,9.49683205]
[1766715754379,9.49683205,123.49,123.44,0.67]
[1766715754678,9.49683205,123.46,123.44,0.67]
[1766715755466,9.49683205,123.47,123.41,8.10303071]
[1766715755686,9.49683205,123.46,123.42,0.67]
[1766715756371,9.49683205,123.44,123.39,8.77430697]
[1766715756571,9.49683205,123.42,123.36,15.45]
[1766715756791,9.49683205,123.41,123.36,0.67]
[1766715757302,9.49683205,123.42,123.38,0.67]
[1766715757504,14.76,123.46,123.39,9.49683205]
[1766715757783,14.76,123.46,123.4,0.67]
[1766715757997,28.3434367,123.49,123.39,8.10427869]
[1766715758291,9.49683205,123.42,123.38,8.77484832]
[1766715758493,9.49683205,123.48,123.38,8.77484832]
[1766715758494,0.21,123.45,123.38,8.77484832]
[1766715758681,9.49683205,123.43,123.39,0.67]
[1766715759569,9.49683205,123.42,123.39,0.67]
[1766715760181,23.07075425,123.45,123.39,0.67]
[1766715760516,9.49683205,123.45,123.4,0.67]
[1766715760673,9.49683205,123.45,123.4,8.7733071]
[1766715760873,9.49683205,123.44,123.4,0.67]
[1766715761499,9.49683205,123.43,123.38,8.77487609]
[1766715761680,9.49683205,123.45,123.4,0.67]
[1766715762089,0.21,123.51,123.42,9.49683205]
[1766715762297,28.54090496,123.54,123.46,0.67]
[1766715762604,9.49683205,123.51,123.46,0.67]
[1766715763006,9.49683205,123.5,123.46,0.67]
[1766715763489,9.49683205,123.51,123.46,0.67]
[1766715763876,9.49683205,123.5,123.44,8.80092469]
[1766715764236,9.49683205,123.5,123.44,18.29775674]
[1766715764390,9.49683205,123.5,123.44,8.80092469]
[1766715764581,9.49683205,123.5,123.44,18.29775674]
[1766715764785,9.49683205,123.5,123.45,0.7]
[1766715765300,8.09653068,123.51,123.45,0.7]
[1766715765482,9.49683205,123.5,123.45,0.7]
[1766715765801,9.49683205,123.48,123.43,0.7]
[1766715766106,0.21,123.5,123.43,0.7]
[1766715766308,9.49683205,123.47,123.43,0.7]
[1766715766478,9.49683205,123.48,123.43,0.7]
[1766715766798,9.49683205,123.47,123.43,0.7]
[1766715767100,9.49683205,123.46,123.41,0.67]
[1766715767287,17.59680121,123.46,123.41,0.67]
[1766715767483,9.49683205,123.45,123.41,0.67]
[1766715767875,8.30901565,123.48,123.41,9.49683205]
[1766715768090,9.49683205,123.46,123.41,10.16683205]
[1766715768293,9.49683205,123.47,123.42,0.67]
[1766715768516,9.49683205,123.47,123.43,0.67]
[1766715768723,15.0,123.59,123.46,10.16683205]
[1766715769016,4.3272732,123.63,123.5,10.43767296]
[1766715769188,0.1,123.64,123.5,10.43767296]
[1766715769189,0.1,123.64,123.6,10.43767296]
[1766715769691,0.1,123.64,123.61,9.49683205]
[1766715769882,1e-08,123.64,123.63,10.43767296]
[1766715770086,0.68,123.67,123.63,10.43767296]
[1766715770510,0.68,123.67,123.6,10.43767296]
[1766715770895,0.68,123.67,123.64,10.43767296]
[1766715771284,0.68,123.67,123.64,19.93450501]
[1766715771490,0.68,123.67,123.62,10.43767296]
[1766715771913,0.68,123.67,123.63,9.49683205]
[1766715772617,0.68,123.67,123.62,10.43767296]
[1766715773023,0.68,123.67,123.64,9.49683205]
[1766715773225,0.68,123.67,123.62,9.49683205]
[1766715773397,0.68,123.65,123.62,10.43767296]
[1766715773599,0.68,123.65,123.6,8.09060938]
[1766715773889,0.68,123.65,123.61,10.43767296]
[1766715774104,0.68,123.65,123.61,28.02414232]
[1766715774419,0.68,123.65,123.62,10.43767296]
[1766715774591,0.68,123.65,123.62,28.02377381]
[1766715775016,0.68,123.67,123.63,8.08863302]
[1766715775213,0.68,123.67,123.62,19.93450501]
[1766715775214,0.68,123.67,123.62,10.43767296]
[1766715775399,0.68,123.67,123.62,19.93450501]
[1766715775598,0.68,123.67,123.62,18.52679813]
[1766715775797,0.68,123.67,123.62,28.02363018]
[1766715776011,0.68,123.66,123.62,10.43767296]
[1766715776607,0.68,123.65,123.62,10.43767296]
[1766715777326,9.49683205,123.66,123.59,22.87117715]
[1766715777327,0.68,123.63,123.59,22.87117715]
[1766715778116,0.68,123.61,123.57,9.49683205]
[1766715778418,0.68,123.64,123.58,9.49683205]
[1766715778608,0.68,123.64,123.57,28.32390071]
[1766715778609,0.68,123.64,123.57,38.76157367]
[1766715778808,0.68,123.64,123.58,9.49683205]
[1766715779114,0.68,123.64,123.57,38.76157367]
[1766715779293,10.17683205,123.64,123.58,9.49683205]
[1766715779491,0.68,123.7,123.6,19.93450501]
[1766715779696,0.68,123.66,123.6,10.43767296]
[1766715779893,10.17683205,123.66,123.6,19.93450501]
[1766715780497,9.49683205,123.65,123.6,10.43767296]
[1766715780698,0.68,123.61,123.56,8.0927502]
[1766715780919,10.17683205,123.64,123.58,9.49683205]
[1766715781126,8.08586626,123.68,123.6,28.02460965]
[1766715781326,9.49683205,123.68,123.62,9.49683205]
[1766715781507,9.49683205,123.71,123.63,0.67]
[1766715781834,9.49683205,123.71,123.63,11.10767296]
[1766715782016,9.49683205,123.71,123.65,9.49683205]
[1766715782323,9.49683205,123.69,123.64,10.43767296]